Cogmind - Beta 10.2 *** ADVENTURER MODE // 2021.01.08 @ 09:34:45 // AFD2020/Player2 Player: Yog-Sothoth Result: Self-destructed Performance ------------- Evolutions (2) 1000 Regions Visited (3) 600 Robots Destroyed (28) 140 Value Destroyed (995) 995 Prototype IDs (7) 140 Alien Tech Used (0) 0 Bonus (811) 811 TOTAL SCORE: 3686 Bonus ------- High Alert Combat Kills 215 Follower Combat Kills 641 Friendly Fire -45 Cogmind --------- Core Integrity 346/550 Matter 260/300 Energy 164/240 System Corruption 0% Temperature Cool (0) Movement Treading (160) Location -8/Materials Parts ------- > --- POWER (2) -------- Nuclear Core > --- PROPULSION (2) --- Light Treads > --- UTILITY (5) ------ Improved Cooling System Visual Processing Unit Improved Signal Interpreter Advanced Terrain Scanner System Shield > --- WEAPON (2) ------- Shock Bomb Launcher > --- INVENTORY (4) ---- Coolant Injector Structural Scanner Hardlight Generator Peak State ------------ > --- POWER ------------ Nuclear Core Nuclear Core > --- PROPULSION ------- Light Treads Light Treads > --- UTILITY ---------- Improved Cooling System Coolant Injector Visual Processing Unit Advanced Terrain Scanner System Shield > --- WEAPON ----------- Arc Projector Arc Projector > --- INVENTORY -------- Structural Scanner Hardlight Generator Shock Bomb Launcher Hammer [Rating: 32] Favorites ----------- Power Nuclear Core Engine Ion Engine Power Core Nuclear Core Propulsion Light Treads Treads Light Treads Flight Unit Improved Flight Unit Utility Sensor Array Device Sensor Array Storage High-capacity Matter Pod Processor Visual Processing Unit Hackware System Shield Weapon Arc Projector Energy Gun Arc Projector Energy Cannon Heavy Particle Cannon Ballistic Gun Improved Assault Rifle Launcher Shock Bomb Launcher Impact Weapon Hammer Build | -11 -10 -9 -8 ------- Run | Scr Mat Mat Mat Slots Evolved 4 | . . 2 2 Power 1 | . . . 1 Propulsion . | . . . . Utility 3 | . . 2 1 Weapon . | . . . . Parts Attached 40 | 6 7 10 17 Power 6 | 1 1 3 1 Engine 4 | 1 1 2 . Core 2 | . . 1 1 Reactor . | . . . . Propulsion 7 | 2 1 2 2 Treads 6 | 2 1 1 2 Leg . | . . . . Wheel . | . . . . Hover . | . . . . Flight 1 | . . 1 . Utility 13 | 1 4 3 5 Device 8 | . 3 2 3 Storage 2 | 1 1 . . Processor 2 | . . 1 1 Hackware 1 | . . . 1 Protection . | . . . . Artifact . | . . . . Weapon 14 | 2 1 2 9 Energy Gun 4 | 1 . . 3 Energy Cannon 2 | . . . 2 Ballistic Gun 3 | 1 . 2 . Ballistic Cannon . | . . . . Launcher 4 | . . . 4 Special Weapon . | . . . . Impact Weapon 1 | . 1 . . Slashing Weapon . | . . . . Piercing Weapon . | . . . . Special Melee Weapon . | . . . . Unidentified Prototypes 3 | . . 3 . Parts Lost 6 | . 2 . 4 Power 1 | . . . 1 Propulsion 1 | . . . 1 Utility 1 | . 1 . . Weapon 3 | . 1 . 2 Highest Loss Streak 2 | . 1 . 2 Average Slot Usage (%) 88 | . 86 79 97 Engine 7 | . 14 9 . Core 7 | . . 1 18 Treads 22 | . 28 21 18 Device 16 | . 9 16 21 Storage 6 | . 8 11 1 Processor 5 | . . 2 12 Hackware 3 | . . . 9 Energy Gun 8 | . 13 . 10 Ballistic Gun 3 | . . 10 . Launcher 1 | . . . 3 Impact Weapon 5 | . 11 5 . Naked Turns . | . . . . Heaviest Build 32 | 12 14 20 32 Greatest Support 40 | 40 40 40 40 Greatest Overweight (x) . | . . . . Average Overweight (x) . | . . . . Largest Inventory Capacity 6 | 6 6 4 4 Average Capacity 4 | 5 4 4 4 Most Carried 4 | 4 4 4 4 Average Carried 2 | 1 . 1 3 Final Capacity 6 | 6 4 4 4 Final Carried 4 | 4 1 4 3 Class Distribution -------------------- 63% | Mutant 30% | Hacker-Mutant 6% | Hacker-Skirmisher Dominant Class ---------------- Mutant | -10/Materials Mutant | -9/Materials Hacker-Mutant | -8/Materials Resources | -11 -10 -9 -8 ----------- Run | Scr Mat Mat Mat Matter Collected 738 | 260 104 252 122 Remotely 30 | . 30 . . Salvage Created 1156 | . 173 238 745 Parts 58 | . 10 12 36 Haulers Intercepted 2 | . 1 1 . Recyclers Shooed . | . . . . Parts Field Recycled . | . . . . Retrieved Matter . | . . . . Parts Self-Destructed . | . . . . Prevented . | . . . . Kills | -11 -10 -9 -8 ------- Run | Scr Mat Mat Mat Combat Hostiles Destroyed 22 | . 5 2 15 Melee 3 | . 2 1 . Guns 10 | . 2 1 7 AOE 7 | . . . 7 Classes Destroyed 7 | . 3 1 3 Hauler 2 | . 1 1 . Recycler 2 | . . 2 . Watcher 2 | . . . 2 Swarmer 8 | . 3 1 4 Grunt 12 | . 2 1 9 Brawler 1 | . . . 1 Sentry 1 | . . . 1 Best Kill Streak 7 | . 2 2 7 Combat Bots Only 6 | . 2 1 6 Max Kills in Single Turn 4 | . 1 1 4 Gunslinging 1 | . . . 1 Exploded 4 | . . . 4 Melee 1 | . 1 1 . Uniques/NPCs Destroyed . | . . . . Combat | -11 -10 -9 -8 -------- Run | Scr Mat Mat Mat Damage Taken 1209 | . 293 150 766 Core 252 | . 63 62 127 Absorbed by Shields . | . . . . Core Remaining (%) 71 | 100 51 62 . Volleys Fired 69 | . 14 8 47 Largest 2 | . 1 2 2 Hottest 150 | . 50 46 150 Shots Fired 112 | . 14 16 82 Gun 94 | . 14 16 64 Cannon 5 | . . . 5 Launcher 13 | . . . 13 Special . | . . . . Kinetic 16 | . . 16 . Thermal 19 | . 14 . 5 Explosive . | . . . . Electromagnetic 77 | . . . 77 Robot Hit Streak 41 | . 7 19 41 Robot Miss Streak 3 | . 2 . 3 Penetration Max . | . . . . Secondary Targets 3 | . . . 3 Max Gunslinging Chain 1 | . . . 1 Shots Hit Robots 113 | . 23 22 68 Core Hits 46 | . 7 7 32 Critical Hits . | . . . . Critical Kills . | . . . . Critical Parts Destroyed . | . . . . Melee Attacks 22 | . 14 8 . Impact 22 | . 14 8 . Slashing . | . . . . Piercing . | . . . . Sneak Attacks 1 | . . 1 . Combat Hostiles . | . . . . Follow-up Attacks . | . . . . Damage Inflicted 2253 | . 324 343 1586 Guns 1001 | . 150 179 672 Cannons 100 | . . . 100 Explosions 814 | . . . 814 Melee 338 | . 174 164 . Ramming . | . . . . Kinetic 179 | . . 179 . Thermal 497 | . 150 . 347 Explosive . | . . . . Electromagnetic 1239 | . . . 1239 Impact 338 | . 174 164 . Slashing . | . . . . Piercing . | . . . . Highest Corruption . | . . . . Average Corruption . | . . . . Corruption Purged . | . . . . Overload Shots . | . . . . Overflow Damage 82 | . 22 14 46 Projectiles . | . . . . Explosions 46 | . . . 46 Melee 36 | . 22 14 . Knockbacks 5 | . 3 2 . Impact 5 | . 3 2 . Kinetic . | . . . . Secondary . | . . . . Self-Inflicted Damage 15 | . . . 15 Shots 1 | . . . 1 Rammed . | . . . . Targets Rammed . | . . . . Kicked . | . . . . Crushed . | . . . . Highest Temperature 220 | . 56 220 207 Average Temperature 46 | . 19 116 51 Received Heat Transfer 660 | . 171 102 387 Siege Activations . | . . . . Robots Corrupted 1 | . . . 1 Combat Hostiles 1 | . . . 1 Parts Fried 7 | . . . 7 Impact Corruptions 2 | . 1 1 . Robots Melted . | . . . . Combat Hostiles . | . . . . Parts Melted 3 | . 3 . . Heat Transferred 842 | . 444 . 398 Parts Sabotaged . | . . . . Parts Stolen . | . . . . Parts Stripped . | . . . . Power Chain Reactions 3 | . . . 3 Missiles Intercepted . | . . . . Alert | -11 -10 -9 -8 ------- Run | Scr Mat Mat Mat Peak Influence 1032 | . 320 339 1032 Initial 121 | . . 43 121 Average 315 | . 122 169 643 Maximum Alert Level 3 | . 1 1 3 Low Security (%) 49 | 100 65 57 18 Level 1 21 | . 34 42 . Level 2 12 | . . . 34 Level 3 16 | . . . 45 Level 4 . | . . . . Level 5 . | . . . . High Security . | . . . . Max Security . | . . . . Squads Dispatched 9 | . 1 1 7 Investigation 4 | . 1 . 3 Extermination . | . . . . Reinforcement 3 | . . 1 2 Assault 1 | . . . 1 Garrison 1 | . . . 1 Intercept . | . . . . Construction Impeded 2 | . . . 2 Haulers Reinforced . | . . . . Stealth | -11 -10 -9 -8 --------- Run | Scr Mat Mat Mat Distress Signals 4 | . 1 . 3 Communications Jammed . | . . . . Distress Signals . | . . . . Times Spotted 63 | . 15 13 35 Peak Tracking Total 8 | . 5 4 8 Tactical Retreats 3 | . . 2 1 Traps | -11 -10 -9 -8 ------- Run | Scr Mat Mat Mat Traps Triggered 2 | . 1 . 1 Indirectly . | . . . . Trap Hack Attempts . | . . . . Triggered . | . . . . Disarmed . | . . . . Reprogrammed . | . . . . Reused . | . . . . Traps Extracted . | . . . . Installed . | . . . . Triggered . | . . . . Machines | -11 -10 -9 -8 ---------- Run | Scr Mat Mat Mat Machines Disabled 14 | . . 2 12 Max in Single Turn 4 | . . . 4 Garrison Access 1 | . . . 1 Machines Sabotaged . | . . . . Garrisons Compromised . | . . . . Overloaded Fab Kills . | . . . . Fab Network Shutdowns . | . . . . Hacking | -11 -10 -9 -8 --------- Run | Scr Mat Mat Mat Machines Accessed 6 | . 5 . 1 Terminals 5 | . 4 . 1 Fabricators . | . . . . Repair Stations . | . . . . Recycling Units 1 | . 1 . . Scanalyzers . | . . . . Garrison Access . | . . . . Total Hacks 11 | . 9 . 2 Successful 8 | . 8 . . Failed 3 | . 1 . 2 Catastrophic 1 | . . . 1 Database Lockouts . | . . . . Manual . | . . . . Terminals 8 | . 6 . 2 Fabricators . | . . . . Repair Stations . | . . . . Recycling Units 3 | . 3 . . Scanalyzers . | . . . . Garrison Access . | . . . . Terminal Hacks 5 | . 5 . . Prototype ID Bank 2 | . 2 . . Locate Traps 1 | . 1 . . Hauler Manifests 1 | . 1 . . Registered Components 1 | . 1 . . Fabricator Hacks . | . . . . Repair Station Hacks . | . . . . Recycling Unit Hacks 3 | . 3 . . Report Inventory 2 | . 2 . . Retrieve Matter 1 | . 1 . . Scanalyzer . | . . . . Garrison Access Hacks . | . . . . Unauthorized Hacks . | . . . . Terminals . | . . . . Fabricators . | . . . . Repair Stations . | . . . . Recycling Units . | . . . . Scanalyzers . | . . . . Garrison Access . | . . . . Data Cores Recovered . | . . . . Used . | . . . . Hacking Detections 5 | . 4 . 1 Full Trace Events . | . . . . Feedback Events . | . . . . Feedback Blocked . | . . . . Robot Schematics Acquired . | . . . . Robots Built . | . . . . Matter . | . . . . Time . | . . . . Total Robot Build Rating . | . . . . Part Schematics Acquired . | . . . . Parts Built . | . . . . Matter . | . . . . Time . | . . . . Total Part Build Rating . | . . . . Parts Repaired . | . . . . Time . | . . . . Parts Recycled . | . . . . Recycled Matter . | . . . . Retrieved Matter 57 | . 57 . . Retrieved Components . | . . . . Parts Scanalyzed . | . . . . Part Schematics Acquired . | . . . . Parts Damaged . | . . . . Bothacking | -11 -10 -9 -8 ------------ Run | Scr Mat Mat Mat Used RIF Installer . | . . . . Robots Hacked . | . . . . Non-combat . | . . . . Combat . | . . . . Robot Hacks Applied . | . . . . Relay Couplers Released 2 | . . . 2 Machine Destruction 2 | . . . 2 Robots Rewired . | . . . . Allies Hacked . | . . . . Hacks Repelled . | . . . . Allies | -11 -10 -9 -8 -------- Run | Scr Mat Mat Mat Total Allies 1 | . 1 . . Largest Group 1 | . 1 1 1 Highest-Rated Group 75 | . 58 66 75 Highest-Rated Ally 75 | . 58 66 75 Total Orders . | . . . . Ally Attacks 135 | . 46 48 41 Total Damage 3270 | . 433 808 2029 Kills 41 | . 8 13 20 Allies Corrupted . | . . . . Allies Melted . | . . . . Intel | -11 -10 -9 -8 ------- Run | Scr Mat Mat Mat Robot Analysis Total . | . . . . Derelict Logs Recovered . | . . . . Drone Launches . | . . . . Drone Recoveries . | . . . . Exploration | -11 -10 -9 -8 ------------- Run | Scr Mat Mat Mat Turns Passed 1338 | 94 406 353 485 Spaces Moved 557 | 53 177 166 161 Core 2 | 2 . . . Treads 555 | 51 177 166 161 Legs . | . . . . Wheels . | . . . . Hover . | . . . . Flight . | . . . . Fastest Speed 50 | 50 160 160 160 Average Speed 159 | 155 160 160 160 Slowest Speed 160 | 160 160 160 160 Overloaded Moves . | . . . . Propulsion Burnouts . | . . . . Robots Hopped . | . . . . Cave-ins Triggered . | . . . . Exploration Rate (%) 20 | 3 38 20 20 Regions Visited 3 Branch Regions . Pre-discovered Areas . | . . . . Known Exits Taken . | . . . . Unknown Exits Taken 3 | 1 1 1 . Scrap Searched . | . . . . Spaces Dug . | . . . . Terrain Destroyed 17 | . . . 17 Melee . | . . . . Projectile 1 | . . . 1 AOE 16 | . . . 16 Terrain Rammed . | . . . . Walls Destroyed . | . . . . Machines Disabled . | . . . . Actions | -11 -10 -9 -8 --------- Run | Scr Mat Mat Mat Total 859 | 62 266 226 305 Wait 128 | . 43 19 66 Move 554 | 52 176 165 161 Hop . | . . . . Pick Up 21 | 4 3 10 4 Fast Attach 17 | 6 4 2 5 Attach 8 | . 1 4 3 Detach 1 | . . . 1 Swap 15 | . 2 4 9 Drop 24 | . 9 6 9 Fire 69 | . 14 8 47 Melee 22 | . 14 8 . Ram . | . . . . Kick . | . . . . Crush . | . . . . Escape Stasis . | . . . . Rewire . | . . . . Trap . | . . . . Miscellaneous . | . . . . Route ------- -11/Scrapyard -10/Materials -9/Materials -8/Materials History --------- Turn | Location | Event 6 | -11/Scrapyard | Discovered new exit (range 16) 95 | -11/Scrapyard | Entered Materials 300 | -10/Materials | Build established: Mutant 462 | -10/Materials | Discovered new exit (range 7) 501 | -10/Materials | Entered another Materials area 501 | -9/Materials | Accompanied by 1 ally 501 | -9/Materials | Evolved 2 slots: Utility x2 842 | -9/Materials | Discovered new exit (range 8) 854 | -9/Materials | Entered another Materials area 854 | -8/Materials | Accompanied by 1 ally 854 | -8/Materials | Evolved 2 slots: Power x1, Utility x1 932 | -8/Materials | Garrison activated, responded to threat 1263 | -8/Materials | Build established: Hacker-Mutant 1339 | -8/Materials | Self-destructed Last Messages --------------- K-01 Serf collects debris. Arc Projector destroyed. K-01 Serf collects debris. G-47 Trooper system terminally corrupted. Lgt. Nuclear Core fried. K-01 Serf collects debris. Player 2 attaches Aluminum Leg. K-01 Serf collects debris. R-06 Scavenger collects Flight Unit. K-01 Serf collects debris. Nuclear Core destroyed. Destroyed Nuclear Core. Terminal disabled. Door malfunctions. Atomic Centrifuge disabled. K-01 Serf collects debris. Lgt. Treads destroyed. ALERT: Construction progress impeded, dispatching reinforcements to local area. U-05 Engineer lays Concrete. Map ----- +----------------------------------------------------+ | ???????????????????????????#??#?????????# ##????#? | | ?????????????????????? ?????????????????# #??????? | | ???????????????????????????????? ?????# #?#???#? | | ?????????????????????????????? ?##?# #??????? | | ?????????????????????? ??????? ?? ##### ##?#???? | | ???????????????????????? ????????? #?#???# | | ????????????????? ????????? ?????? ##??#??? | | ??????????????????????#???????????? #######? | | ??????????????????? ???? ?????????? ? +? | | ?????????????????????###??????#????#### ! # | | ????????????????#???#???#?????????#?#?# "" ## | | ?????????????????????????#??#??#??????# " %! | | ?????????????????#????????? ??#????#??# [ ==%# | | ??????????????????#??????????########## *% =!# | | ?????????????????????????????+ [=% = =!% | | ?????????????????????????? ??# %%* % [= | | ???????????? ???????????? ? ?# !*%%= = =# | | ??????????????????????????? ?+ !=#####"#+##### %# | | ???????????? ??? #????########+## ##### ## # | | ??????????????????????# # ##### ## # | | ??????????????? ??#???# # + """ ## # | | ???????????????????#??# [ #=[ ### T" ## # | | ??????????????????????# #%= #?# """ + | | ??????????????????????###/#######=% #?#= ## ## | | ???????????????? ????#?## #???? [ #?######## ##? | | ??????????#???????????#?#@##??# #? ??????#?? | | ??????????????????????? uuu ? /????? ?????? | | ????????????????????? #? ??? ?##???? | | ??????????????????## #??????????##? | | ???????????????????# " #? ??????????? | | ???????????????????# g a#????#??#??#?? | | ???????????????#???# ##?#???#?#???# | | ???????????????????# k #???????????#? | | ?????????????????#?# "" " " ###??#??????#? | | ???????????????????# "" "" ?#?????????#? | | ??????????????? ???# "" ????##??????? | | ???????????????????# #?????#?????? | | ??????????????????## #???????????? | | ???????????????????# ?"" ? ? ##??????????? | | ???????????????????# ??? ?? ??????????????? | | ???????????????????# ?? " ???????????????????? | | ????????????????????????? ? ???????????????????? | | ????????????????????????? ?????????????????????? | | ?????????????????????????????????????????????????? | | ?????????????????????????????????????????????????? | | ?????????????????????????????????????????????????? | | ?????????????????????????????????????????????????? | | ?????????????????????????????????????????????????? | | ?????????????????????????????????????????????????? | | ?????????????????????????????????????????????????? | +----------------------------------------------------+ Best States ------------- Heat Dissipation 58 Coolant Potential 65 Energy Generation 23 Energy Capacity 380 Matter Stores 500 Matter Capacity 500 Sight Range 18 Robot Scan Range 10 Terrain Scan Range 20 Terrain Scan Density 10 Resistance: KI 20 Resistance: TH 20 Resistance: EX 20 Resistance: EM 20 Resistance: I 20 Resistance: S 20 Resistance: P 20 Evasion (%) 40 Recoil Reduction 2 Offensive Hacking 10 Defensive Hacking 10 Item Schematics ----------------- None Robot Schematics ------------------ None Fabricated ------------ Nothing Alien Tech Used ----------------- None Achievements -------------- None Challenges ------------ None Player 2 | -11 -10 -9 -8 ---------- Run | Scr Mat Mat Mat Slots Evolved 4 | . 2 2 . Power . | . . . . Propulsion 4 | . 2 2 . Utility . | . . . . Weapon . | . . . . Parts Attached 49 | . 10 14 25 Parts Lost 14 | . . 4 10 Damage Taken 1494 | . 176 370 948 Core 224 | . 59 88 77 Player 2/Cogmind (%) 47 | . 48 58 37 Absorbed by Shields . | . . . . Damage Inflicted 3270 | . 433 808 2029 Player 2/Cogmind (%) 59 | . 57 70 56 Combat Hostiles Destroyed 31 | . 7 8 16 Player 2/Cogmind (%) 58 | . 58 80 51 Game ------ Seed TacticalReflectiveSlayer Manual? 0 Play Time 00:20:21 Cumulative 20.5 hours Start 2021.01.07 @ 19:07:28 End 2021.01.08 @ 09:34:45 Sessions 3 Manual Loads 0 Difficulty Adventurer Special Mode AFD2020/Player2 Game No. 34 Rogue 0 Adventurer 34 Explorer 0 Win Type - Total 0 Types 0/0/0/0/0/0/0/0/0 Lore% 14 Gallery% 27 Achievement% 19 Wizard Run 0 Options --------- ASCII 0 Keyboard 0 Movement Mouse Keybinds 0 Fullscreen 2 Font 20/SmallcapsGlow Map View 66x50 Tactical HUD 0 Map Filters NONE Filters NONE Steam 1 RUN: 1409fb55-b851-456f-9641-5e83a8941e2a